bitfinex/quotes_SOLUSD_20220128
["timestamp","ask_amount","ask_price","bid_price","bid_amount"]
[1643380506354,112.1,88.839,88.701,0.25]
[1643380506554,56.361,88.85,88.681,44.86137056]
[1643380506758,3.06981055,88.849,88.682,3.12226551]
[1643380507055,3.06981055,88.849,88.69,6.0]
[1643380507256,11.88197825,88.848,88.69,19.58]
[1643380507456,3.06981055,88.847,88.691,112.1]
[1643380507656,3.06981055,88.847,88.701,42.40608563]
[1643380507856,14.9517888,88.847,88.702,112.1]
[1643380508057,16.907,88.84,88.721,41.47807525]
[1643380508656,3.07042399,88.839,88.721,41.47807525]
[1643380508956,115.17042399,88.839,88.721,41.47807525]
[1643380509157,3.07042399,88.838,88.721,41.47807525]
[1643380509360,16.91,88.82,88.722,10.82031]
[1643380509558,0.30177684,88.807,88.722,4.27600257]
[1643380509762,0.30517592,88.776,88.623,29.35021854]
[1643380509961,0.30517592,88.776,88.624,10.83228]
[1643380510165,17.81230658,88.775,88.625,3.12424206]
[1643380510361,112.1,88.774,88.618,44.16672293]
[1643380510560,17.23187647,88.75,88.618,44.16672293]
[1643380510960,11.88197825,88.749,88.618,44.16672293]
[1643380511161,32.65097625,88.749,88.618,44.16672293]
[1643380511363,72.1756,88.759,88.618,44.16672293]
[1643380511762,16.927,88.74,88.618,44.16672293]
[1643380512163,14.83866967,88.739,88.58,13.58]
[1643380512362,14.83866967,88.739,88.59,6.0]
[1643380512564,14.83866967,88.738,88.59,6.0]
[1643380512764,16.932,88.73,88.61,16.927]
[1643380513164,28.81397825,88.73,88.58,56.43]
[1643380513365,2.95669142,88.729,88.574,2.14713171]
[1643380513567,0.30941757,88.742,88.581,2.14713171]
[1643380513970,0.30941757,88.742,88.57,15.72713171]
[1643380514166,16.934,88.72,88.61,16.927]
[1643380514365,16.934,88.72,88.611,45.2541173]
[1643380514572,2.95669142,88.719,88.611,45.2541173]
[1643380515268,16.934,88.72,88.611,45.2541173]
[1643380515470,56.422,88.75,88.611,45.2541173]
[1643380515770,11.70041669,88.746,88.611,45.2541173]
[1643380516171,2.95669142,88.745,88.612,0.25]
[1643380516369,2.95669142,88.745,88.611,45.2541173]
[1643380516570,16.926,88.73,88.611,45.2541173]
[1643380516771,112.1,88.729,88.57,70.015]
[1643380516975,112.1,88.729,88.58,6.0]
[1643380516976,0.30025378,88.722,88.58,6.0]
[1643380517178,0.30025378,88.722,88.57,56.435]
[1643380517572,2.95669142,88.721,88.57,56.435]
[1643380517786,2.95669142,88.721,88.591,43.99709553]
[1643380517972,2.95669142,88.749,88.592,112.1]
[1643380518173,24.1048,88.761,88.6,6.0]
[1643380518373,74.0691,88.828,88.61,13.58]
[1643380518571,2.95669142,88.793,88.62,6.0]
[1643380518771,16.918,88.78,88.67,16.916]
[1643380518972,10.66725,88.779,88.671,37.84555858]
[1643380519374,22.36677251,88.779,88.671,37.84555858]
[1643380519577,10.66725,88.779,88.671,37.84555858]
[1643380519779,10.66725,88.779,88.672,0.25]
[1643380519975,10.66725,88.779,88.671,37.84555858]
[1643380520976,16.918,88.78,88.671,37.84555858]
[1643380521877,19.87469142,88.78,88.671,37.84555858]
[1643380522083,112.1,88.779,88.671,37.84555858]
[1643380522381,2.95669142,88.8,88.672,0.25]
[1643380522576,80.6766,88.83,88.681,112.1]
[1643380522777,17.81230658,88.822,88.682,0.25]
[1643380522976,112.1,88.821,88.69,6.0]
[1643380523176,16.913,88.8,88.67,30.496]
[1643380523378,0.30744521,88.769,88.612,23.6607]
[1643380523678,0.30744521,88.769,88.64,6.0]
[1643380523876,31.32930958,88.768,88.6,13.58]
[1643380524080,31.32930958,88.768,88.605,2.14713171]
[1643380524276,17.81230658,88.768,88.65,16.92]
[1643380524476,17.81230658,88.768,88.651,43.77333093]
[1643380524678,17.81230658,88.787,88.651,43.77333093]
[1643380524893,10.56031158,88.767,88.6,13.58]
[1643380525087,112.1,88.766,88.61,6.0]
[1643380525278,129.91230658,88.766,88.61,6.0]
[1643380525480,10.56031158,88.765,88.61,6.0]
[1643380525680,179.62311816,88.765,88.61,6.0]
[1643380525879,179.62311816,88.765,88.611,38.14036593]
[1643380525880,17.81230658,88.764,88.611,38.14036593]
[1643380526079,16.927,88.75,88.62,22.925]
[1643380526479,10.66725,88.749,88.62,22.925]
[1643380526679,10.66725,88.749,88.621,2.14713171]
[1643380527081,10.66725,88.749,88.631,47.04267367]
[1643380527280,10.66725,88.749,88.64,16.922]
[1643380527482,10.66725,88.749,88.64,22.922]
[1643380527679,10.66725,88.749,88.641,0.25]
[1643380528178,10.66725,88.749,88.64,6.0]
[1643380528579,112.1,88.748,88.631,47.04267367]
[1643380528781,10.66725,88.746,88.631,47.04267367]
[1643380529180,112.1,88.745,88.631,47.04267367]
[1643380529380,10.66725,88.734,88.631,47.04267367]
[1643380530182,10.66725,88.734,88.63,16.923]
[1643380530382,10.66725,88.734,88.568,0.1]
[1643380530583,10.66725,88.734,88.58,13.58]
[1643380530900,0.31559596,88.69,88.57,0.1]
[1643380531082,10.66725,88.688,88.57,0.1]
[1643380531282,56.472,88.67,88.541,38.40001677]
[1643380531582,0.31479885,88.644,88.542,0.1]
[1643380531782,10.66725,88.642,88.541,0.1]
[1643380532010,10.66725,88.642,88.518,0.1]
[1643380532381,10.66725,88.642,88.518,49.72777106]
[1643380532683,10.66725,88.642,88.519,0.1]
[1643380532881,10.66725,88.642,88.52,6.0]
[1643380533281,10.66725,88.642,88.521,0.25]
[1643380533680,10.66725,88.642,88.52,6.0]
[1643380534080,16.942,88.64,88.54,16.94]
[1643380534281,10.66725,88.638,88.541,49.33910431]
[1643380534482,10.66725,88.638,88.542,0.1]
[1643380534781,10.66725,88.638,88.542,0.35]
[1643380534981,10.66725,88.638,88.55,16.939]
[1643380535184,10.66725,88.638,88.551,0.1]
[1643380535383,10.66725,88.638,88.551,0.35]
[1643380535582,10.66725,88.638,88.551,0.1]
[1643380535782,10.66725,88.638,88.542,0.1]
[1643380535985,112.1,88.659,88.52,6.0]
[1643380536182,16.944,88.63,88.53,16.942]
[1643380536383,16.944,88.63,88.531,0.1]
[1643380536586,16.944,88.63,88.54,6.0]
[1643380536786,112.1,88.629,88.541,44.907121]
[1643380536985,112.1,88.629,88.542,0.1]
[1643380537387,16.945,88.62,88.542,0.1]
[1643380537589,16.945,88.62,88.511,0.1]
[1643380537590,112.1,88.619,88.511,0.1]
[1643380537788,112.1,88.619,88.497,0.1]
[1643380537986,123.80828254,88.619,88.497,0.1]
[1643380538187,11.70828254,88.619,88.497,0.1]
[1643380538390,16.945,88.62,88.497,35.62818707]
[1643380538590,16.945,88.62,88.498,0.1]
[1643380538990,16.945,88.62,88.5,6.0]
[1643380539614,10.66725,88.619,88.5,6.0]
[1643380540014,10.66725,88.619,88.498,0.1]
[1643380540015,56.503,88.61,88.498,0.1]
[1643380540218,56.503,88.61,88.45,74.73381854]
[1643380540219,16.957,88.56,88.481,0.1]
[1643380540420,16.957,88.56,88.451,0.1]
[1643380540619,16.957,88.56,88.412,22.9094]
[1643380540620,72.0694,88.559,88.427,0.1]
[1643380540815,72.0694,88.559,88.427,3.2114603]
[1643380541018,72.0694,88.559,88.428,36.8918662]
[1643380541216,125.8762,88.608,88.429,0.1]
[1643380541417,205.7351,88.608,88.429,3.20013903]
[1643380541720,0.30287736,88.598,88.43,6.0]
[1643380542118,0.30287736,88.598,88.44,16.96]
[1643380542322,17.81230658,88.597,88.44,16.96]
[1643380542520,112.1,88.596,88.45,6.0]
[1643380542925,17.81230658,88.595,88.451,41.32084241]
[1643380543120,205.7351,88.608,88.47,16.954]
[1643380543330,0.31189883,88.603,88.471,0.1]
[1643380543523,0.31335118,88.564,88.439,0.1]
[1643380543823,0.32152078,88.549,88.376,4.64081854]
[1643380544221,18.13382736,88.549,88.376,4.64081854]
[1643380544422,18.13382736,88.549,88.4,36.31545059]
[1643380544623,16.967,88.53,88.401,0.1]
[1643380545530,16.967,88.53,88.41,6.04470369]
[1643380545925,16.967,88.53,88.41,0.04470369]
[1643380546425,34.62215528,88.565,88.41,0.04470369]
[1643380546426,0.31923752,88.63,88.41,13.62470369]
[1643380546628,10.66725,88.588,88.411,27.40813598]
[1643380546826,10.66725,88.588,88.412,115.28951912]
[1643380547028,10.66725,88.588,88.45,16.957]
[1643380547228,0.30074572,88.586,88.451,47.49442161]
[1643380547426,10.66725,88.585,88.452,0.1]
[1643380547626,16.957,88.57,88.452,0.1]
[1643380547827,122.76725,88.569,88.452,0.1]
[1643380548828,16.959,88.56,88.451,0.1]
[1643380549028,10.66725,88.559,88.413,0.1]
[1643380549229,31.436248,88.559,88.41,0.04470369]
[1643380549430,0.30441817,88.529,88.41,0.04470369]
[1643380549633,0.31867053,88.515,88.41,0.04470369]
[1643380549829,0.31591192,88.483,88.41,0.04470369]
[1643380550029,0.32059525,88.47,88.41,0.04470369]
[1643380550633,2.95669142,88.469,88.41,0.04470369]
[1643380550929,16.973,88.49,88.41,0.04470369]
[1643380552029,10.66725,88.489,88.41,0.04470369]
[1643380552829,2.95669142,88.488,88.41,0.04470369]
[1643380553031,10.66725,88.487,88.41,0.04470369]
[1643380553530,16.973,88.49,88.41,0.04470369]
[1643380553930,0.31124534,88.481,88.41,0.04470369]
[1643380554329,16.981,88.46,88.41,0.04470369]
[1643380554731,20.768998,88.459,88.41,0.04470369]
[1643380555031,17.81230658,88.458,88.41,0.00470369]
[1643380555231,76.019,88.457,88.41,0.00470369]
[1643380555632,16.984,88.45,88.41,0.00470369]
[1643380555834,10.56725,88.449,88.41,0.00470369]
[1643380556031,0.1,88.448,88.41,0.00470369]
[1643380556433,17.81230658,88.447,88.41,0.00470369]
[1643380556732,16.985,88.44,88.41,0.00470369]
[1643380556933,0.1,88.439,88.41,0.00470369]
[1643380557633,0.31907918,88.421,88.41,0.00470369]
[1643380557832,23.05739994,88.42,88.26,16.993]
[1643380558031,0.1,88.419,88.256,368.14396196]
[1643380558233,0.1,88.419,88.287,2.1547728]
[1643380558536,0.1,88.419,88.313,47.19743168]
[1643380558732,0.1,88.419,88.315,2.1547728]
[1643380558932,0.1,88.44,88.315,2.1547728]
[1643380559131,0.1,88.475,88.321,112.1]
[1643380559332,2.95669142,88.469,88.322,0.25]
[1643380559532,2.95669142,88.469,88.32,6.0]
[1643380559732,12.79968957,88.469,88.32,6.0]
[1643380559934,34.82735249,88.468,88.321,0.25]
[1643380560134,16.98,88.46,88.321,0.25]
[1643380560334,0.1,88.459,88.321,0.25]
[1643380560534,0.1,88.459,88.322,2.16041088]
[1643380560535,112.2,88.459,88.322,2.16041088]
[1643380560733,0.1,88.458,88.321,112.35]
[1643380560934,0.1,88.458,88.323,0.25]
[1643380561135,0.1,88.467,88.33,6.0]
[1643380561334,0.1,88.467,88.34,16.977]
[1643380561534,17.81230658,88.457,88.35,6.0]
[1643380561733,0.1,88.456,88.331,0.1]
[1643380562033,17.81230658,88.455,88.321,0.25]
[1643380562236,0.1,88.454,88.321,0.25]
[1643380562434,17.01504591,88.454,88.321,0.25]
[1643380562637,17.81230658,88.455,88.321,40.66162945]
[1643380563036,17.81230658,88.455,88.33,6.0]
[1643380563436,17.81230658,88.455,88.331,0.25]
[1643380564134,2.95669142,88.454,88.332,2.16041088]
[1643380564335,2.95669142,88.454,88.33,22.978]
[1643380564535,17.81230658,88.453,88.331,0.25]
[1643380564736,17.81230658,88.453,88.33,6.0]
[1643380564934,2.95669142,88.452,88.331,0.25]
[1643380565335,16.982,88.45,88.331,0.25]
[1643380565735,20.768998,88.449,88.331,0.25]
[1643380565938,20.768998,88.449,88.321,0.25]
[1643380566135,20.768998,88.448,88.321,35.27566376]
[1643380566343,20.768998,88.448,88.321,35.02566376]
[1643380566539,129.91230658,88.447,88.322,3.10559451]
[1643380566737,132.868998,88.447,88.321,35.02566376]
[1643380566936,129.91230658,88.447,88.33,6.0]
[1643380567137,17.81230658,88.447,88.33,6.0]
[1643380567737,112.1,88.459,88.34,16.977]
[1643380567937,17.81230658,88.465,88.341,43.24967568]
[1643380568136,13.58,88.55,88.35,6.0]
[1643380568337,17.81230658,88.503,88.351,3.36309335]
[1643380568638,17.81230658,88.503,88.36,6.0]
[1643380568839,17.81230658,88.503,88.361,52.15450499]
[1643380569036,17.81230658,88.503,88.381,47.38992771]
[1643380569437,17.81230658,88.503,88.39,6.0]
[1643380569836,17.81230658,88.503,88.391,0.25]
[1643380570038,20.768998,88.503,88.39,16.968]
[1643380570237,20.768998,88.503,88.36,13.58]
[1643380570440,2.95669142,88.475,88.357,112.1]
[1643380570739,46.7804,88.502,88.358,3.1157072]
[1643380570937,46.7804,88.502,88.358,0.25]
[1643380571138,46.7804,88.502,88.37,16.972]
[1643380571342,46.7804,88.502,88.371,35.40682725]
[1643380571641,46.7804,88.502,88.38,6.0]
[1643380572039,46.7804,88.502,88.381,3.11993847]
[1643380572238,46.7804,88.502,88.39,16.968]
[1643380572438,46.7804,88.502,88.391,46.36858892]
[1643380572638,17.81230658,88.503,88.4,6.0]
[1643380572842,129.71202236,88.521,88.401,0.25]
[1643380573039,111.9,88.521,88.402,3.12106589]
[1643380573238,17.81202236,88.539,88.42,16.962]
[1643380573439,17.81202236,88.539,88.41,6.0]
[1643380573640,17.81202236,88.52,88.4,6.0]
[1643380573837,17.81202236,88.52,88.37,13.58]
[1643380574041,2.95669142,88.519,88.38,6.0]
[1643380574241,13.5219118,88.519,88.38,6.0]
[1643380574441,28.37724274,88.518,88.381,51.22678859]
[1643380574641,112.1,88.517,88.39,6.0]
[1643380574942,16.972,88.51,88.39,22.968]
[1643380575140,17.81202236,88.517,88.391,0.25]
[1643380575541,17.81202236,88.517,88.39,22.968]
[1643380575742,0.30576724,88.515,88.354,71.5818]
[1643380576041,111.9,88.495,88.355,3.12712837]
[1643380576247,16.978,88.49,88.355,3.12712837]
[1643380576646,17.81202236,88.489,88.356,44.56496913]
[1643380576844,20.76871378,88.489,88.357,0.25]
[1643380577143,20.76871378,88.489,88.36,6.0]
[1643380577144,0.30375705,88.484,88.36,6.0]
[1643380577343,0.30375705,88.484,88.361,3.13946734]
[1643380577547,13.5219118,88.483,88.361,3.13946734]
[1643380577943,16.978,88.49,88.34,6.0]
[1643380577944,16.978,88.49,88.341,3.13946734]
[1643380578149,16.978,88.49,88.363,43.03250485]
[1643380578545,16.978,88.49,88.37,6.0]
[1643380578744,76.8263,88.494,88.371,3.13946734]
[1643380578945,24.6378,88.513,88.371,5.56439201]
[1643380579246,111.9,88.529,88.381,147.92217125]
[1643380579444,111.9,88.529,88.39,13.58]
[1643380579649,0.1,88.551,88.391,115.23946734]
[1643380579946,16.965,88.54,88.421,39.88081834]
[1643380580146,16.965,88.54,88.43,6.0]
[1643380580548,17.81202236,88.539,88.43,6.0]
[1643380581148,129.065,88.54,88.43,6.0]
[1643380581555,129.065,88.54,88.421,39.88081834]
[1643380581758,129.065,88.54,88.43,6.0]
[1643380582153,79.8055,88.553,88.431,0.25]
[1643380582154,0.1,88.55,88.431,0.25]
[1643380582353,0.1,88.552,88.431,112.35]
[1643380582553,0.1,88.552,88.44,6.0]
[1643380582753,0.1,88.552,88.441,47.59018966]
[1643380582953,0.1,88.552,88.441,47.84018966]
[1643380583153,0.1,88.552,88.45,6.0]
[1643380583352,0.1,88.552,88.451,0.25]
[1643380583957,0.1,88.554,88.451,0.25]
[1643380584561,2.95669142,88.553,88.4,13.58]
[1643380584757,2.95669142,88.553,88.313,102.09637898]
[1643380584758,0.31137491,88.54,88.401,3.13058653]
[1643380584966,0.32190239,88.515,88.378,3.13058653]
[1643380585661,30.14627582,88.539,88.401,46.66591128]
[1643380586060,10.56522038,88.538,88.401,46.66591128]
[1643380586261,27.1895844,88.538,88.402,0.25]
[1643380586661,10.56522038,88.538,88.403,3.13243633]
[1643380586863,10.56522038,88.538,88.404,0.25]
[1643380587061,0.1,88.554,88.411,6.0]
[1643380587261,0.1,88.554,88.412,3.38241676]
[1643380587461,0.1,88.554,88.416,46.95986705]
[1643380587663,0.1,88.554,88.426,6.0]
[1643380587862,0.1,88.615,88.44,13.58]
[1643380588062,0.1,88.618,88.51,16.946]
[1643380588280,0.1,88.629,88.511,35.86010592]
[1643380588879,0.1,88.629,88.521,6.0]
[1643380589081,0.1,88.638,88.54,16.941]
[1643380589279,0.1,88.644,88.541,41.58944136]
[1643380589481,0.1,88.659,88.541,41.58944136]
[1643380589981,16.62436402,88.658,88.454,4.64081854]
[1643380590183,16.943,88.65,88.5,16.948]
[1643380590380,3.17559727,88.649,88.501,0.25]
[1643380590681,16.72436402,88.649,88.51,6.0]
[1643380590984,0.1,88.648,88.51,6.0]
[1643380591282,0.1,88.648,88.44,13.58]
[1643380591283,0.32393147,88.628,88.44,13.58]
[1643380591482,0.32393147,88.628,88.443,3.12100116]
[1643380591681,2.95669142,88.627,88.44,13.58]
[1643380591881,48.0998,88.626,88.44,13.58]
[1643380592084,3.17109749,88.625,88.441,39.93342731]
[1643380592282,6.12778891,88.625,88.442,0.25]
[1643380592584,79.32898891,88.624,88.442,0.25]
[1643380592782,6.24219498,88.623,88.442,0.25]
[1643380592982,16.958,88.62,88.45,16.958]
[1643380593282,3.17109749,88.619,88.451,0.25]
[1643380593484,33.31737331,88.619,88.451,0.25]
[1643380593684,0.1,88.618,88.451,0.25]
[1643380593883,112.1,88.617,88.451,6.25]
[1643380594085,0.1,88.616,88.451,0.25]
[1643380594284,56.53,88.61,88.451,0.25]
[1643380594485,16.962,88.56,88.442,0.25]
[1643380594687,0.1,88.559,88.442,0.25]
[1643380595084,0.1,88.559,88.451,6.0]
[1643380595285,0.1,88.607,88.46,16.956]
[1643380595488,0.1,88.607,88.461,45.94456992]
[1643380595887,0.1,88.607,88.462,0.25]
[1643380596289,2.95669142,88.606,88.47,16.954]
[1643380596491,0.30334849,88.593,88.451,6.0]
[1643380596689,0.30334849,88.593,88.42,56.531]
[1643380596989,16.963,88.55,88.411,3.11937615]
[1643380597194,0.1,88.549,88.431,6.0]
[1643380597491,0.1,88.549,88.432,45.62317571]
[1643380597889,0.1,88.552,88.432,45.62317571]
[1643380598291,0.1,88.552,88.433,0.25]
[1643380598490,0.1,88.559,88.432,45.62317571]
[1643380598690,0.1,88.559,88.442,6.0]
[1643380598890,0.1,88.568,88.442,6.0]
[1643380599090,0.1,88.568,88.443,6.0]
[1643380599291,0.1,88.568,88.443,10.37012633]
[1643380599490,0.1,88.568,88.444,112.1]
[1643380599690,3.07109749,88.622,88.444,112.1]
[1643380599691,0.30964732,88.572,88.454,40.15482808]
[1643380599895,2.95669142,88.567,88.454,46.15482808]
[1643380600293,2.95669142,88.567,88.454,40.15482808]
[1643380600693,16.961,88.56,88.454,40.15482808]
[1643380600894,112.2,88.559,88.454,40.15482808]
[1643380601095,0.1,88.558,88.415,3.11937615]
[1643380601296,0.1,88.558,88.422,6.0]
[1643380601297,3.05669142,88.558,88.422,6.0]
[1643380601498,3.05669142,88.558,88.404,3.11937615]
[1643380601499,0.32345779,88.535,88.404,3.11937615]
[1643380601898,2.95669142,88.534,88.404,3.11937615]
[1643380602098,78.2059,88.533,88.405,42.25672793]
[1643380602300,105.3954844,88.533,88.405,42.25672793]
[1643380602499,16.971,88.52,88.405,42.25672793]
[1643380602698,16.971,88.52,88.386,3.11937615]
[1643380602998,0.30157163,88.501,88.378,3.11937615]
[1643380603196,0.30157163,88.501,88.36,558.20809261]
[1643380603197,0.30157163,88.501,88.373,3.11937615]
[1643380603397,30.14627582,88.5,88.365,3.11937615]
[1643380603596,47.12227582,88.5,88.366,47.38931278]
[1643380603800,47.12227582,88.5,88.367,3.13055381]
[1643380604097,183.8268,88.519,88.38,3.11937615]
[1643380604299,24.3035,88.519,88.387,3.11937615]
[1643380604698,24.3035,88.519,88.397,6.0]
[1643380604903,24.3035,88.519,88.398,39.70714259]
[1643380605104,2.95669142,88.518,88.408,6.0]
[1643380605299,24.3035,88.519,88.408,6.0]
[1643380605699,46.1962,88.532,88.408,6.0]
[1643380606498,2.95669142,88.531,88.408,6.0]
[1643380606899,16.967,88.53,88.408,6.0]
[1643380607101,16.967,88.53,88.41,6.0]
[1643380607301,112.1,88.529,88.41,6.0]
[1643380607900,2.95669142,88.528,88.41,6.0]
[1643380608101,16.969,88.52,88.41,6.0]
[1643380608502,2.95669142,88.519,88.41,6.0]
[1643380608702,2.95669142,88.519,88.408,6.0]
[1643380609901,2.95669142,88.519,88.377,3.11937615]
[1643380609902,16.972,88.51,88.377,3.11937615]
[1643380610305,26.42907502,88.509,88.372,3.11937615]
[1643380610501,0.30058638,88.49,88.372,6.0]
[1643380610704,16.982,88.45,88.355,3.11937615]
[1643380610904,16.982,88.45,88.342,3.11937615]
[1643380611105,16.982,88.45,88.303,47.54588867]
[1643380611106,16.982,88.45,88.33,3.11937615]
[1643380611308,148.5852,88.479,88.339,3.11937615]
[1643380611515,2.95669142,88.449,88.341,3.11937615]
[1643380611713,10.66725,88.447,88.342,41.23113234]
[1643380611914,10.66725,88.447,88.35,3.11937615]
[1643380612115,10.66725,88.447,88.362,3.11937615]
[1643380612414,112.1,88.529,88.363,52.89493035]
[1643380612611,112.1,88.529,88.373,6.0]
[1643380612817,24.7039,88.528,88.374,115.4789981]
[1643380613016,24.7039,88.528,88.401,35.92199731]
[1643380613215,2.95669142,88.527,88.401,35.92199731]
[1643380613415,2.95669142,88.527,88.411,6.0]
[1643380613618,45.4799,88.544,88.412,6.0]
[1643380613816,11.69899299,88.526,88.412,6.25]
[1643380614314,45.5799,88.544,88.412,6.25]
[1643380614315,2.95669142,88.525,88.412,0.25]
[1643380614532,11.69747512,88.559,88.423,48.4948409]
[1643380614733,0.1,88.558,88.423,48.4948409]
[1643380614931,0.1,88.558,88.433,6.0]
[1643380614932,2.95669142,88.558,88.433,6.0]
[1643380615135,16.62436402,88.557,88.441,38.14137203]
[1643380615334,0.1,88.556,88.441,38.14137203]
[1643380615532,0.3165499,88.553,88.451,6.0]
[1643380615734,10.66725,88.552,88.451,6.0]
[1643380615932,0.1,88.551,88.451,6.0]
[1643380616131,10.66725,88.549,88.451,6.0]
[1643380616332,0.1,88.548,88.441,38.14137203]
[1643380616531,10.66725,88.546,88.441,38.14137203]
[1643380616732,0.1,88.545,88.441,38.14137203]
[1643380616932,10.66725,88.544,88.442,112.35]
[1643380617132,10.76725,88.544,88.452,118.1]
[1643380617331,0.1,88.544,88.453,0.25]
[1643380617532,0.1,88.593,88.453,0.25]
[1643380617733,16.785,88.624,88.441,38.14137203]
[1643380617734,16.62436402,88.573,88.441,38.14137203]
[1643380618035,16.96,88.57,88.441,38.14137203]
[1643380618233,0.1,88.569,88.442,0.25]
[1643380618733,16.62436402,88.568,88.442,0.25]
[1643380618934,0.1,88.567,88.442,0.25]
[1643380619333,0.1,88.571,88.451,6.0]
[1643380619735,0.1,88.571,88.444,1.56379946]
[1643380619934,1.53945351,88.561,88.441,38.14137203]
[1643380620134,1.53945351,88.561,88.442,0.25]
[1643380620334,0.1,88.569,88.442,0.25]
[1643380620540,112.2,88.571,88.451,6.0]
[1643380620738,0.1,88.57,88.442,1.81379946]
[1643380621034,0.1,88.57,88.452,0.25]
[1643380621234,1.63945351,88.57,88.442,0.25]
[1643380621438,0.1,88.57,88.442,0.25]
[1643380621639,17.06,88.57,88.45,16.958]
[1643380621835,0.1,88.569,88.451,6.25]
[1643380622051,0.1,88.57,88.451,6.25]
[1643380622447,0.1,88.57,88.461,48.84463937]
[1643380622651,17.06,88.57,88.45,16.958]
[1643380622849,1.84984335,88.566,88.435,1.56379946]
[1643380623051,111.9,88.532,88.435,1.56379946]
[1643380623250,111.9,88.532,88.424,1.56379946]
[1643380623550,111.9,88.532,88.434,6.0]
[1643380623751,111.9,88.532,88.421,35.68859003]
[1643380623951,112.1,88.531,88.421,35.68859003]
[1643380624151,112.1,88.531,88.431,6.0]
[1643380625151,16.967,88.53,88.431,6.0]
[1643380625752,112.1,88.531,88.431,6.0]
[1643380625952,111.9,88.532,88.431,6.0]
[1643380626152,0.1,88.546,88.432,0.25]
[1643380626353,1.53945351,88.557,88.432,2.43581358]
[1643380626557,0.1,88.564,88.443,35.53823024]
[1643380626852,1.53945351,88.561,88.442,6.0]
[1643380627054,16.963,88.56,88.437,1.56379946]
[1643380627252,1.53945351,88.558,88.433,1.56379946]
[1643380627452,1.53945351,88.554,88.43,1.56379946]
[1643380627652,111.9,88.531,88.43,1.56379946]
[1643380627852,111.9,88.531,88.435,1.56379946]
[1643380628054,111.9,88.531,88.446,39.32918563]
[1643380628454,111.9,88.531,88.456,6.0]
[1643380629253,111.9,88.531,88.446,39.32918563]
[1643380629254,0.1,88.546,88.446,39.32918563]
[1643380629452,111.9,88.533,88.43,1.56379946]
[1643380629653,111.9,88.533,88.426,1.56379946]
[1643380629956,111.9,88.533,88.424,1.56379946]
[1643380630152,111.9,88.533,88.434,6.0]
[1643380630353,111.9,88.533,88.425,1.56379946]
[1643380630354,0.31572455,88.519,88.435,35.5722589]
[1643380630557,0.31572455,88.519,88.435,41.5722589]
[1643380631358,111.9,88.533,88.435,41.5722589]
[1643380631560,111.9,88.533,88.441,7.56379946]
[1643380631761,111.9,88.533,88.441,1.56379946]
[1643380631957,111.9,88.533,88.452,47.52489509]
[1643380632157,111.9,88.533,88.451,6.0]
[1643380632458,0.3171865,88.529,88.452,6.0]
[1643380632656,0.3171865,88.529,88.451,6.0]
[1643380633058,0.3171865,88.529,88.432,6.0]
[1643380633284,111.9,88.533,88.432,6.0]
[1643380633458,111.9,88.533,88.446,44.71719903]
[1643380633658,111.9,88.533,88.447,113.66379946]
[1643380633861,111.9,88.533,88.46,13.58]
[1643380634058,111.9,88.533,88.471,34.82696268]
[1643380634258,11.70085179,88.6,88.471,34.82696268]
[1643380634259,0.1,88.544,88.48,16.952]